Cogmind - Beta 16 *** ADVENTURER MODE // 2026.01.20 @ 05:08:10 Player: RukRukRuk Result: Destroyed by Y-45 Defender with Heavy Assault Rifle Performance ------------- Evolutions (1) 500 Regions Visited (2) 400 Robots Destroyed (11) 55 Value Destroyed (161) 161 Prototype IDs (1) 20 Alien Tech Used (0) 0 Bonus (0) 0 TOTAL SCORE: 1136 Bonus ------- None Cogmind --------- Core Integrity 0/400 Matter 115/300 Energy 99/100 System Corruption 0% Temperature Cool (0) Movement Core (150) Ox2 Location -9/Materials Parts ------- > --- POWER (1) -------- (None) > --- PROPULSION (2) --- (None) > --- UTILITY (4) ------ Small Storage Unit Structural Scanner Improved Signal Interpreter Utility Shielding > --- WEAPON (2) ------- (None) > --- INVENTORY (8) ---- Aluminum Leg Peak State ------------ > --- POWER ------------ Light Ion Engine > --- PROPULSION ------- Improved VTOL Module Improved VTOL Module > --- UTILITY ---------- Small Storage Unit Structural Scanner Sensor Array Improved Terrain Scanner > --- WEAPON ----------- Light Assault Rifle Datajack > --- INVENTORY -------- Light Ion Engine Light Treads Light Treads Aluminum Leg Aluminum Leg Light Assault Rifle [Rating: 17] Favorites ----------- Power Light Ion Engine Engine Light Ion Engine Propulsion Light Treads Treads Light Treads Leg Aluminum Leg Flight Unit Improved VTOL Module Utility Small Storage Unit Device Structural Scanner Storage Small Storage Unit Processor Improved Signal Interpreter Protection Utility Shielding Weapon Light Assault Rifle Ballistic Gun Light Assault Rifle Special Weapon Plasma Cutter Special Melee Weapon Datajack Build | -11 -10 -9 ------- Run | Yrd Mat Mat Slots Evolved 2 | . . 2 Power . | . . . Propulsion . | . . . Utility 2 | . . 2 Weapon . | . . . Parts Attached 21 | 6 5 10 Power 4 | 1 1 2 Engine 4 | 1 1 2 Core . | . . . Reactor . | . . . Propulsion 6 | 2 . 4 Treads 2 | 2 . . Leg 2 | . . 2 Wheel . | . . . Hover . | . . . Flight 2 | . . 2 Utility 6 | 2 1 3 Device 3 | 1 1 1 Storage 1 | 1 . . Processor 1 | . . 1 Hackware . | . . . Protection 1 | . . 1 Artifact . | . . . Weapon 5 | 1 3 1 Energy Gun . | . . . Energy Cannon . | . . . Ballistic Gun 3 | 1 2 . Ballistic Cannon . | . . . Launcher . | . . . Special Weapon 1 | . . 1 Impact Weapon . | . . . Slashing Weapon . | . . . Piercing Weapon . | . . . Special Melee Weapon 1 | . 1 . Unidentified Prototypes 1 | . . 1 Parts Lost 12 | . 1 11 Power 4 | . 1 3 Propulsion 3 | . . 3 Utility 2 | . . 2 Weapon 3 | . . 3 Highest Loss Streak 9 | . 1 9 To Critical Strikes . | . . . Average Backups 3 | 1 4 3 Power . | . . . Propulsion 1 | . 1 1 Utility . | . 1 . Weapon . | . . . Tool/Special . | . . . Unused Backups . | . . . Power . | . . . Propulsion . | . . . Utility . | . . . Weapon . | . . . Tool/Special . | . . . Average Slot Usage (%) 93 | . 97 85 Engine 11 | . 13 8 Treads 19 | . 28 5 Leg 4 | . . 11 Device 18 | . 14 25 Storage 12 | . 14 11 Processor 1 | . . 4 Ballistic Gun 20 | . 24 13 Special Melee Weapon 2 | . 1 4 Peak Build Rating 17 | 8 8 17 Average Rating 7 | 4 6 10 On Entrance 5 | . 8 7 Avg Prop Armor Cover (%) 8 | . . 8 Naked Turns . | . . . Heaviest Build 14 | 10 12 14 Greatest Support 40 | 40 40 40 Greatest Overweight (x) 4 | . . 4 Average Overweight (x) . | . . . Largest Inventory Capacity 8 | 8 8 8 Average Capacity 7 | 7 8 8 Most Carried 7 | 3 7 7 Average Carried 3 | 1 4 3 Final Capacity 8 | 8 8 8 Final Carried 6 | 2 6 1 Class Distribution -------------------- 75% | Mutant 10% | Scavenger-Skirmisher 7% | Scavenger-Mutant 6% | Assassin Dominant Class ---------------- Mutant | -10/Materials Scavenger-Skirmisher | -9/Materials Resources | -11 -10 -9 ----------- Run | Yrd Mat Mat Matter Collected 402 | 266 88 48 Remotely . | . . . Salvage Created 296 | 122 174 . Parts 20 | 5 15 . Haulers Intercepted . | . . . Recyclers Shooed . | . . . Parts Field Recycled . | . . . Retrieved Matter . | . . . Parts Self-Destructed . | . . . Prevented . | . . . Parts Restored . | . . . Kills | -11 -10 -9 ------- Run | Yrd Mat Mat Combat Hostiles Destroyed 8 | . 8 . Guns 8 | . 8 . Classes Destroyed 4 | 2 2 . Tunneler 2 | 2 . . Recycler 1 | 1 . . Swarmer 6 | . 6 . Grunt 2 | . 2 . Best Kill Streak 3 | 2 3 . Combat Bots Only 3 | . 3 . Max Kills in Single Turn 1 | 1 1 . Gunslinging . | . . . Exploded . | . . . Melee . | . . . Uniques/NPCs Destroyed . | . . . Combat | -11 -10 -9 -------- Run | Yrd Mat Mat Hostile Shots Fired 212 | . 52 160 Missed 61 | . 13 48 Hits 151 | . 39 112 Melee 8 | . . 8 Projectile 143 | . 39 104 Critical Strikes 8 | . . 8 Actively Blocked 1 | . . 1 Damage Taken 1550 | . 283 1267 Core 437 | . 36 401 Absorbed by Shields . | . . . Redirected to Shielding 12 | . . 12 Ignored by Resistances 462 | . 94 368 Core Remaining (%) 92 | 100 85 . Volleys Fired 63 | 21 34 8 Largest 2 | 1 2 2 Hottest 40 | 20 40 40 Shots Fired 84 | 21 52 11 Gun 83 | 21 52 10 Cannon . | . . . Launcher . | . . . Special 1 | . . 1 Kinetic 83 | 21 52 10 Thermal 1 | . . 1 Explosive . | . . . Electromagnetic . | . . . Robot Hit Streak 12 | 12 8 8 Robot Miss Streak 3 | 2 3 1 Penetration Max . | . . . Secondary Targets . | . . . Shots Hit Robots 61 | 17 31 13 Core Hits 26 | 7 15 4 Critical Kills 1 | 1 . . Critical Parts Destroyed 2 | 2 . . Critical Strikes 3 | 3 . . Destroy 3 | 3 . . Melee Attacks 3 | . . 3 Impact . | . . . Slashing . | . . . Piercing . | . . . Sneak Attacks . | . . . Combat Hostiles . | . . . Follow-up Attacks . | . . . Damage Inflicted 508 | 131 297 80 Guns 495 | 131 296 68 Cannons . | . . . Explosions . | . . . Melee . | . . . Ramming 1 | . 1 . Kinetic 495 | 131 296 68 Thermal 12 | . . 12 Explosive . | . . . Electromagnetic . | . . . Impact . | . . . Slashing . | . . . Piercing . | . . . Highest Corruption . | . . . Average Corruption . | . . . Corruption Purged . | . . . Corruption Blocked . | . . . Overload Shots . | . . . Overflow Damage . | . . . Projectiles . | . . . Explosions . | . . . Melee . | . . . Knockbacks . | . . . Impact . | . . . Kinetic . | . . . Secondary . | . . . Self-Inflicted Damage . | . . . Shots . | . . . Rammed 1 | . 1 . Targets Rammed 1 | . 1 . Kicked . | . . . Crushed . | . . . Highest Temperature 24 | . 15 24 Average Temperature 10 | . 10 10 Received Heat Transfer 741 | . 93 648 Siege Activations . | . . . Martial Activations . | . . . Shielding Activations . | . . . Robots Disrupted . | . . . Combat Hostiles . | . . . Robots Corrupted . | . . . Combat Hostiles . | . . . Parts Fried . | . . . Impact Corruptions . | . . . Robots Melted . | . . . Combat Hostiles . | . . . Parts Melted . | . . . Heat Transferred 37 | . . 37 Parts Sabotaged . | . . . Parts Stolen . | . . . Parts Stripped . | . . . Power Chain Reactions . | . . . Alert | -11 -10 -9 ------- Run | Yrd Mat Mat Maximum Alert Level . | . . . Low Security (%) 100 | 100 100 100 Level 1 . | . . . Level 2 . | . . . Level 3 . | . . . Level 4 . | . . . Level 5 . | . . . High Security . | . . . Max Security . | . . . Peak Influence 95 | 10 95 30 Initial 12 | . . 12 Average 22 | . 39 5 Influence Increases 359 | 15 254 90 Destroy 0b10 Robot/C 160 | . 160 . Destroy 0b10 Robot/NC 15 | 15 . . Destroy Leader 30 | . 30 . Successful Hack 4 | . 4 . Lose Combat Pursuer 150 | . 60 90 Influence Decreases 359 | 15 219 125 Entered New Map 23 | . . 23 Time Decay 286 | 15 219 52 Lost Part 50 | . . 50 Squads Dispatched 3 | . . 3 Investigation 1 | . . 1 Extermination . | . . . Reinforcement 2 | . . 2 Assault . | . . . Garrison . | . . . Intercept . | . . . Searches Triggered . | . . . Construction Impeded . | . . . Haulers Reinforced . | . . . Active Scanning Responses . | . . . Cargo Convoy Interrupts . | . . . Stealth | -11 -10 -9 --------- Run | Yrd Mat Mat Distress Signals 1 | . . 1 Communications Jammed . | . . . Distress Signals . | . . . Times Spotted 28 | . 15 13 Peak Tracking Total 8 | . 6 8 Tactical Retreats 5 | . 2 3 Traps | -11 -10 -9 ------- Run | Yrd Mat Mat Traps Triggered 1 | . . 1 Indirectly . | . . . Trap Hack Attempts 19 | . 19 . Triggered . | . . . Disarmed 2 | . 2 . Reprogrammed . | . . . Reused . | . . . Traps Extracted . | . . . Installed . | . . . Triggered . | . . . Machines | -11 -10 -9 ---------- Run | Yrd Mat Mat Machines Disabled . | . . . Max in Single Turn . | . . . Machines Repaired . | . . . Machines Dismantled . | . . . Machines Sabotaged . | . . . Overloaded Fab Kills . | . . . Hacking | -11 -10 -9 --------- Run | Yrd Mat Mat Machines Accessed 2 | . 2 . Terminals 2 | . 2 . Fabricators . | . . . Repair Stations . | . . . Recycling Units . | . . . Scanalyzers . | . . . Garrison Access . | . . . Total Hacks 5 | . 5 . Successful 4 | . 4 . Failed 1 | . 1 . Catastrophic . | . . . Database Lockouts . | . . . Manual . | . . . Terminals 5 | . 5 . Fabricators . | . . . Repair Stations . | . . . Recycling Units . | . . . Scanalyzers . | . . . Garrison Access . | . . . Terminal Hacks 4 | . 4 . Alert Level 1 | . 1 . Locate Traps 1 | . 1 . Maintenance Status 1 | . 1 . Hauler Manifests 1 | . 1 . Fabricator Hacks . | . . . Repair Station Hacks . | . . . Recycling Unit Hacks . | . . . Scanalyzer . | . . . Garrison Access Hacks . | . . . Unauthorized Hacks . | . . . Terminals . | . . . Fabricators . | . . . Repair Stations . | . . . Recycling Units . | . . . Scanalyzers . | . . . Garrison Access . | . . . Data Cores Recovered . | . . . Used . | . . . Hacking Detections . | . . . Full Trace Events . | . . . Feedback Events . | . . . Feedback Blocked . | . . . Robot Schematics Acquired . | . . . Robots Built . | . . . Authchips . | . . . Time . | . . . Total Robot Build Rating . | . . . Part Schematics Acquired . | . . . Parts Built . | . . . Authchips . | . . . Time . | . . . Total Part Build Rating . | . . . Part Studies Acquired . | . . . Parts Repaired . | . . . Time . | . . . Parts Recycled . | . . . Recycled Matter . | . . . Retrieved Matter . | . . . Retrieved Components . | . . . Parts Scanalyzed . | . . . Part Schematics Acquired . | . . . Parts Damaged . | . . . Bothacking | -11 -10 -9 ------------ Run | Yrd Mat Mat Used RIF Installer . | . . . Robots Hacked 1 | . . 1 Non-combat . | . . . Combat 1 | . . 1 Robot Hacks Applied 1 | . . 1 parse_system 1 | . . 1 Relay Couplers Released . | . . . Fabnet Peak Effective % . | . . . Robots Rewired . | . . . Allies Hacked . | . . . Hacks Repelled . | . . . Allies | -11 -10 -9 -------- Run | Yrd Mat Mat Total Allies . | . . . Largest Group . | . . . Highest-Rated Group . | . . . Highest-Rated Ally . | . . . Total Orders . | . . . Ally Attacks . | . . . Total Damage . | . . . Kills . | . . . Allies Corrupted . | . . . Allies Melted . | . . . Intel | -11 -10 -9 ------- Run | Yrd Mat Mat Active Infowar (turns) 821 | 28 506 287 Sensors 137 | . . 137 Terrain 296 | 28 29 239 Structural 764 | . 477 287 Robot Analysis Total . | . . . Derelict Logs Recovered . | . . . Drone Launches . | . . . Drone Recoveries . | . . . Exploration | -11 -10 -9 ------------- Run | Yrd Mat Mat Turns Passed 969 | 174 508 287 Spaces Moved 472 | 79 246 147 Core 13 | 3 . 10 Treads 356 | 76 246 34 Legs 102 | . . 102 Wheels . | . . . Hover . | . . . Flight 1 | . . 1 Fastest Speed 50 | 50 160 120 Average Speed 157 | 155 160 153 Slowest Speed 250 | 160 160 250 Overloaded Moves . | . . . Propulsion Burnouts . | . . . Robots Hopped . | . . . Potential Cave-ins . | . . . Cave-ins Triggered . | . . . Exploration Rate (%) 23 | 6 50 14 Regions Visited 2 Branch Regions . Pre-discovered Areas . | . . . Known Exits Taken . | . . . Unknown Exits Taken 2 | 1 1 . Scrap Searched . | . . . Spaces Dug . | . . . Terrain Destroyed . | . . . Melee . | . . . Projectile . | . . . AOE . | . . . Terrain Rammed . | . . . Walls Destroyed . | . . . Machines Disabled . | . . . Actions | -11 -10 -9 --------- Run | Yrd Mat Mat Total 622 | 113 315 194 Wait 6 | . 1 5 Move 470 | 78 245 147 Hop . | . . . Pick Up 22 | 8 7 7 Fast Attach . | . . . Attach 21 | 6 4 11 Detach 2 | . 1 1 Swap 12 | . 2 10 Drop 3 | . 1 2 Fire 63 | 21 34 8 Melee 3 | . . 3 Ram . | . . . Kick . | . . . Crush 1 | . 1 . Escape Stasis . | . . . Rewire . | . . . Trap 19 | . 19 . Miscellaneous . | . . . Route ------- -11/Scrapyard -10/Materials (discovered 2 exits: [*Mat] / [*Min]) -9/Materials History --------- Turn | Location | Event 5 | -11/Scrapyard | Discovered new exit (range 15) 175 | -11/Scrapyard | Entered Materials 311 | -10/Materials | Build established: Mutant 465 | -10/Materials | Discovered new exit (range 5) 541 | -10/Materials | Discovered new exit (range 7) 683 | -10/Materials | Entered another Materials area 683 | -9/Materials | Evolved 2 slots: Utility x2 953 | -9/Materials | Core integrity fell below 50% 964 | -9/Materials | Core integrity fell below 20% 970 | -9/Materials | Destroyed by Y-45 Defender with Heavy Assault Rifle Last Messages --------------- Reading system data... Jacked L-31 Rogue... Command string: attack No effect. Jacked L-31 Rogue... Command string: format No effect. Acquired Plasma Cutter. Lgt. Treads destroyed. L-31 Rogue destroyed. Acquired Lgt. Treads. Acquired 48 matter. Datajack destroyed. Plasma Cutter destroyed. Acquired Imp. Ion Engine. Acquired Utility Shielding. Lgt. Treads destroyed. [Achievement: That Tickles] Critical hit (Burn: +37). Imp. Ion Engine destroyed. Map ----- +----------------------------------------------------+ | ????????????????????????############# # """ """ | | ????????????##??????????############# # """ """ | | ???????? ????????????? # """ """ | | ?????????????????????? # | | ?????????????????????? + | | ?????????????????????? # | | ??????????????????????####/######+### # | | ??????????????????????# # # # | | ???????????????????????????? # ?? # ########## | | ??????????????????????? ??"?"# ??? # ########## | | ????????????????????????????"# ??? # ##???????? | | ????????????????????????????"# ???? # ##???????? | | ??????????????????????#????? # ???? # ##????#??? | | ????????????????????????????###??#?## ##???????? | | ???????????????????????????????????## ##???????? | | ??????????????? ??? ############### ##???????? | | ???????????????????################## ##??????#? | | ???????????????????## + ##???????? | | ???????????????###### # ##???????? | | ???????????????###### # ##???????? | | ???????????????## # ggYY # ###########???????? | | ???????????????## /g # ###########???????? | | ???????????????## # /# ##??? ????????????? | | ???????????????## ? # [ # ##????????????????# | | ???????????????## ? # # ##?????????????#??? | | ??????????????????? # @ # ????????????????? | | ??????????????????? ########## ##????????????????? | | ??????????????????? ########## ##????????????????? | | ?????????????????????#???????? ??????????????????? | | ??????????????????? ? ???????? ??????????????????? | | ?????????????????????????????? ??????????????????? | | ?????????????????????????????? ??????????????????? | | ?????????????????????? ??????? ????#?????????????? | | ?????????????????????????????????????????????????? | | ?????????????????????????????????????????????????? | | ?????????????????????????????????????????????????? | | ?????????????????????????????????????????????????? | | ?????????????????????????????????????????????????? | | ?????????????????????????????????????????????????? | | ?????????????????????????????????????????????????? | | ?????????????????????????????????????????????????? | | ?????????????????????????????????????????????????? | | ?????????????????????????????????????????????????? | | ?????????????????????????????????????????????????? | | ?????????????????????????????????????????????????? | | ?????????????????????????????????????????????????? | | ?????????????????????????????????????????????????? | | ?????????????????????????????????????????????????? | | ?????????????????????????????????????????????????? | | ?????????????????????????????????????????????????? | +----------------------------------------------------+ Best States ------------- Heat Dissipation 28 Energy Generation 12 Energy Capacity 265 Matter Stores 300 Matter Capacity 300 Sight Range 16 Robot Scan Range 14 Terrain Scan Range 16 Terrain Scan Density 10 Resistance: KI 20 Resistance: TH 20 Resistance: EX 20 Resistance: EM 20 Resistance: I 20 Resistance: S 20 Resistance: P 20 Utility Shielding 33 Evasion (%) 55 Recoil Reduction 2 Offensive Hacking 10 Item Schematics ----------------- None Robot Schematics ------------------ None Fabricated ------------ Nothing Repaired ---------- Nothing Studied --------- None Alien Tech Used ----------------- None Achievements -------------- That Tickles Challenges ------------ None Game ------ Seed HeartEtherialActivator Manual? 0 Play Time 00:21:24 Cumulative 6.4 hours Start 2026.01.20 @ 04:47:09 End 2026.01.20 @ 05:08:10 Sessions 1 Manual Loads 0 Difficulty Adventurer Special Mode None Game No. 7 Rogue 0 Adventurer 7 Explorer 0 Win Type - Total 0 Types 0/0/0/0/0/0/0/0/0/0 Lore% 5 Gallery% 12 Achievement% 9 Wizard Run 0 Options --------- Layout 1 ASCII 0 Keyboard 0 Movement Mouse Keybinds 0 Fullscreen 1 Font 24/Smallcaps Map View 50x35 Zoom Use 0% Tactical HUD 0 Map Filters NONE Filters NONE Steam 1 RUN: e22b7f5a-283a-4039-9699-54ef8167de49